bitfinex/quotes_ETHUSD_20251010
["timestamp","ask_amount","ask_price","bid_price","bid_amount"]
[1760130546636,15.19758331,3907.4,3904.2,0.2201]
[1760130546932,5.484,3907.3,3904.3,0.4582]
[1760130547222,15.19758331,3906.8,3904.3,0.4582]
[1760130547427,5.482,3906.7,3904.3,0.4582]
[1760130547638,7.125,3906.7,3904.3,0.4582]
[1760130547839,15.19758331,3906.8,3904.3,0.4582]
[1760130547998,1.643,3907.5,3904.4,0.02561212]
[1760130548198,0.001,3909.2,3904.5,2.1012]
[1760130548439,15.19758331,3908.8,3904.6,2.3782]
[1760130548743,15.19758331,3908.8,3904.7,0.4582]
[1760130549031,15.19758331,3908.8,3904.4,1.212]
[1760130549032,0.45192719,3908.7,3903.1,0.2201]
[1760130549244,15.19758331,3907.0,3904.8,0.4582]
[1760130549539,7.396,3906.9,3904.8,0.4582]
[1760130549748,15.19758331,3906.1,3903.8,0.4582]
[1760130549908,15.19758331,3905.3,3903.1,0.4582]
[1760130550109,7.116,3905.2,3903.1,0.4582]
[1760130550309,8.03375388,3905.1,3903.1,0.4582]
[1760130550620,15.19758331,3905.3,3903.2,0.02562]
[1760130550933,15.19758331,3905.3,3901.6,5.133]
[1760130550934,2.56087854,3905.0,3903.3,0.4582]
[1760130551137,15.19758331,3905.3,3903.3,0.4582]
[1760130551351,2.56076604,3905.1,3903.3,0.4582]
[1760130551517,5.47,3905.2,3903.3,0.4582]
[1760130551833,5.47,3905.2,3902.0,0.2201]
[1760130551834,1.92,3904.3,3902.6,0.4582]
[1760130551999,2.56225106,3902.9,3902.6,0.4582]
[1760130552199,1.92,3904.1,3901.7,0.4582]
[1760130552200,2.56231233,3902.8,3901.7,0.4582]
[1760130552401,15.19758331,3903.7,3901.7,0.4582]
[1760130552402,5.467,3903.0,3901.7,0.4582]
[1760130552732,2.56232864,3902.7,3900.8,0.4582]
[1760130552936,15.19758331,3902.9,3900.8,0.4582]
[1760130553307,5.465,3902.8,3900.8,0.4582]
[1760130553619,17.75984617,3902.9,3900.9,0.00901271]
[1760130553801,17.75984617,3902.9,3900.8,0.4582]
[1760130553802,0.1014,3905.3,3901.1,2.56337955]
[1760130553998,0.1014,3905.3,3901.2,0.4582]
[1760130553999,2.56082883,3905.0,3901.2,0.4582]
[1760130554203,15.19758331,3905.1,3901.2,0.4582]
[1760130554624,9.024,3905.0,3901.2,0.4582]
[1760130554809,15.19758331,3904.1,3901.2,0.4582]
[1760130555018,7.104,3904.0,3901.2,0.4582]
[1760130555219,2.56154102,3903.9,3901.2,0.4582]
[1760130555418,2.56213021,3903.1,3901.2,0.4582]
[1760130555625,5.461,3903.8,3901.2,0.4582]
[1760130555939,1.92,3904.0,3901.2,0.4582]
[1760130556125,1.92,3903.8,3901.2,0.4582]
[1760130556329,2.56193958,3903.3,3901.2,0.4582]
[1760130556641,2.56293786,3901.8,3901.2,0.4582]
[1760130556808,2.56293786,3901.8,3900.4,0.6804]
[1760130556809,5.457,3901.8,3900.4,0.6804]
[1760130557010,2.56298536,3901.7,3900.4,0.4603]
[1760130557331,1.92,3902.6,3900.4,0.4603]
[1760130557332,1.92,3903.0,3900.5,0.2166]
[1760130557526,1.537,3905.4,3900.5,0.2166]
[1760130557527,5.455,3903.5,3900.6,0.4603]
[1760130557728,5.455,3903.4,3901.0,2.56337995]
[1760130558049,15.19758331,3905.0,3901.1,2.3823]
[1760130558342,5.454,3904.9,3901.3,1.92]
[1760130558640,0.001,3905.1,3902.2,2.56265696]
[1760130558948,1.28596811,3909.2,3901.4,2.3803]
[1760130558949,0.001,3905.5,3902.4,1.92]
[1760130559237,0.001,3905.5,3901.1,0.002]
[1760130559238,0.001,3905.5,3902.7,1.92]
[1760130559433,0.001,3905.5,3902.6,2.5623943]
[1760130559434,0.001,3905.5,3903.8,2.56156347]
[1760130559636,0.001,3905.9,3903.1,1.92]
[1760130559835,0.001,3905.9,3903.7,1.92]
[1760130560005,0.001,3905.9,3903.4,1.92]
[1760130560207,15.19758331,3908.6,3904.2,1.92]
[1760130560435,1.642,3909.3,3904.4,19.67877899]
[1760130560646,1.642,3909.3,3904.3,7.57691278]
[1760130560647,15.19758331,3908.6,3904.7,1.92]
[1760130560937,2.55899219,3907.8,3904.8,0.4603]
[1760130561140,0.001,3909.2,3904.8,0.4603]
[1760130561343,0.001,3909.2,3907.5,0.1272]
[1760130561587,0.001,3909.2,3906.8,1.92]
[1760130561739,2.5582097,3909.0,3906.8,0.4603]
[1760130561945,2.767,3908.9,3906.8,0.4603]
[1760130562173,2.55832992,3908.8,3906.8,0.4603]
[1760130562440,0.001,3909.2,3906.8,0.4603]
[1760130563380,0.001,3909.6,3909.1,0.2166]
[1760130563884,0.001,3909.6,3909.2,0.4603]
[1760130564044,2.55818485,3909.1,3908.1,0.6769]
[1760130564245,15.19758331,3908.6,3906.7,0.4603]
[1760130564488,5.437,3908.5,3906.7,0.4603]
[1760130564655,7.99555855,3908.5,3906.7,0.4603]
[1760130564844,5.437,3908.5,3906.7,0.4603]
[1760130565048,1.92,3908.4,3906.7,0.4603]
[1760130565378,2.55925068,3907.4,3906.7,0.4603]
[1760130565567,2.55923744,3907.5,3906.7,0.4603]
[1760130565771,1.92,3908.5,3906.7,0.4603]
[1760130566091,5.433,3908.4,3906.7,0.4603]
[1760130566389,15.19758331,3909.2,3906.7,0.4603]
[1760130566788,2.55855201,3908.5,3906.7,0.4603]
[1760130567076,5.431,3909.1,3906.7,0.4603]
[1760130567397,0.001,3909.6,3906.7,0.4603]
[1760130567743,0.001,3909.6,3907.1,2.55944306]
[1760130567979,0.001,3909.6,3906.7,4.93999852]
[1760130568179,0.001,3909.6,3906.8,0.4603]
[1760130568486,2.55827076,3908.9,3906.8,0.4603]
[1760130569037,5.425,3909.0,3906.8,0.4603]
[1760130569490,0.001,3909.6,3906.8,0.4603]
[1760130569693,0.001,3909.6,3906.9,2.55955524]
[1760130570020,0.001,3910.0,3906.8,0.4603]
[1760130570021,0.001,3910.0,3907.3,1.92]
[1760130570218,0.001,3910.0,3907.5,1.92]
[1760130570406,0.001,3910.0,3906.8,0.4603]
[1760130570588,0.001,3910.0,3907.0,2.3803]
[1760130570893,0.25932875,3912.9,3909.9,0.2166]
[1760130571085,2.55597587,3912.4,3910.0,0.4603]
[1760130571281,15.45691206,3912.9,3910.1,0.2166]
[1760130571486,15.45691206,3912.9,3910.2,0.48587413]
[1760130571487,2.55571457,3912.8,3910.2,0.48587413]
[1760130571716,2.5564578,3911.7,3910.2,0.4603]
[1760130571915,5.418,3912.7,3911.1,0.1272]
[1760130572118,2.55640059,3911.8,3911.2,0.4603]
[1760130572321,2.5565311,3911.6,3911.2,0.4603]
[1760130572493,2.5565311,3911.6,3910.1,0.2166]
[1760130572494,2.55591281,3912.5,3911.3,0.4603]
[1760130572691,0.25932875,3912.9,3911.3,0.4603]
[1760130572927,2.55629399,3912.0,3911.3,0.4603]
[1760130573111,2.55648367,3911.7,3911.3,0.4603]
[1760130573317,2.55577989,3912.7,3910.1,0.2166]
[1760130573515,5.127,3915.1,3911.4,0.4603]
[1760130573714,1.64,3914.4,3911.4,0.4603]
[1760130574024,15.19758331,3914.1,3911.4,0.4603]
[1760130574224,1.92,3913.8,3911.4,0.4603]
[1760130574423,2.55506157,3913.8,3911.4,0.4603]
[1760130574632,1.92,3913.7,3911.4,0.4603]
[1760130574794,1.92,3914.1,3911.4,0.4603]
[1760130575001,2.55580394,3912.7,3911.4,0.4603]
[1760130575297,2.55624582,3912.0,3911.4,0.4603]
[1760130575623,5.408,3912.6,3911.4,0.4603]
[1760130575812,5.407,3912.5,3911.4,0.4603]
[1760130576013,2.55643326,3911.7,3910.5,0.4603]
[1760130576202,0.001,3912.0,3910.5,0.4603]
[1760130576534,2.55689183,3911.0,3910.5,0.4603]
[1760130576738,2.55713833,3910.7,3909.7,0.4603]
[1760130577031,4.47689082,3911.0,3909.7,0.4603]
[1760130577239,2.55751817,3910.1,3909.7,0.4603]
[1760130577409,15.19758331,3911.5,3909.7,0.4603]
[1760130577610,2.5566947,3911.3,3909.7,0.4603]
[1760130577809,8.961,3911.4,3909.7,0.4603]
[1760130577810,1.92,3911.4,3909.7,0.4603]
[1760130578008,15.19758331,3911.5,3909.7,0.4603]
[1760130578009,1.92,3911.2,3909.7,0.4603]
[1760130578222,2.55669194,3911.4,3909.7,0.4603]
[1760130578433,0.001,3912.0,3909.7,0.4603]
[1760130578599,0.001,3912.0,3911.3,0.2166]
[1760130579015,0.001,3912.0,3911.4,0.4603]
[1760130579734,0.001,3912.4,3911.4,0.4603]
[1760130579735,0.001,3912.4,3911.5,0.02556563]
[1760130579937,2.55505705,3913.9,3912.3,0.2166]
[1760130580124,2.55384423,3915.7,3912.3,0.2166]
[1760130580125,15.19758331,3915.3,3912.4,0.4603]
[1760130580321,5.395,3915.2,3912.4,0.4603]
[1760130580528,1.92,3914.9,3912.4,0.4603]
[1760130580831,2.55427841,3915.0,3912.4,0.4603]
[1760130581000,7.034,3915.1,3912.4,0.4603]
[1760130581205,2.55502725,3913.9,3912.4,0.4603]
[1760130581436,5.392,3914.0,3912.4,0.4603]
[1760130581933,5.391,3916.3,3912.5,3.559]
[1760130582135,5.391,3916.3,3912.5,1.639]
[1760130582305,5.391,3916.3,3913.4,1.92]
[1760130582504,0.001,3916.7,3915.3,0.1272]
[1760130582926,0.001,3916.7,3915.4,0.4603]
[1760130583140,0.001,3916.7,3915.5,0.1272]
[1760130583341,0.001,3916.7,3915.5,0.5875]
[1760130584043,0.001,3916.7,3915.5,0.4603]
[1760130584526,0.001,3916.7,3915.5,0.5875]
[1760130584726,0.001,3916.7,3914.9,0.2166]
[1760130585057,2.55343053,3916.3,3915.6,0.4603]
[1760130585263,1.921,3916.4,3914.9,0.2166]
[1760130585428,1.921,3916.4,3914.7,0.4603]
[1760130585635,2.5544089,3914.8,3914.7,0.4603]
[1760130585841,5.38,3915.6,3914.7,0.4603]
[1760130586149,1.92,3915.5,3913.7,0.4314]
[1760130586455,2.55434366,3914.9,3912.7,0.4314]
[1760130586623,2.55447416,3914.7,3912.7,0.4314]
[1760130586818,15.19758331,3915.1,3912.7,0.4314]
[1760130586819,2.55518398,3913.7,3912.7,0.4314]
[1760130587258,2.55434366,3914.9,3912.7,0.4314]
[1760130587427,2.55486574,3914.1,3912.7,0.4314]
[1760130587615,2.55506157,3913.8,3911.3,0.2166]
[1760130587822,1.92,3913.4,3911.4,0.4314]
[1760130588019,2.55478123,3914.3,3911.4,0.4314]
[1760130588020,15.19758331,3914.4,3911.4,0.4314]
[1760130588252,2.55540509,3913.3,3911.4,0.4314]
[1760130588452,1.92,3914.1,3911.4,0.4314]
[1760130588653,1.92,3913.9,3911.4,0.4314]
[1760130588853,0.3187,3914.8,3911.4,0.4314]
[1760130588854,1.92,3913.3,3911.4,0.4314]
[1760130589152,1.26435611,3917.1,3911.4,0.4314]
[1760130589153,2.55529439,3913.5,3911.4,0.4314]
[1760130589454,1.92,3913.7,3911.4,0.4314]
[1760130589455,2.5558972,3912.6,3911.4,0.4314]
[1760130589622,5.37,3912.6,3911.4,0.4314]
[1760130589817,2.55618498,3912.1,3911.4,0.4314]
[1760130590052,5.37,3912.6,3911.4,0.4314]
[1760130590239,1.92,3912.5,3910.6,0.4323]
[1760130590424,2.55656856,3911.5,3910.6,0.4323]
[1760130590622,2.55665824,3911.4,3910.6,0.4323]
[1760130590821,2.55577989,3912.7,3910.6,0.4323]
[1760130590822,5.368,3911.9,3910.6,0.4323]
[1760130591052,2.55674751,3911.3,3910.6,0.4323]
[1760130591237,1.92,3912.2,3910.6,0.4323]
[1760130591440,1.92,3913.8,3910.6,0.4323]
[1760130591674,1.92,3912.6,3910.6,0.4323]
[1760130591983,1.92,3912.5,3910.6,0.4323]
[1760130592190,1.92,3912.5,3908.2,0.4323]
[1760130592191,30.0,3912.1,3908.2,0.4323]
[1760130592486,1.92,3910.8,3908.2,0.4323]
[1760130592659,0.2795,3912.0,3908.2,0.4323]
[1760130592660,1.92,3910.6,3908.2,0.6675]
[1760130592865,0.2795,3912.0,3908.2,0.6675]
[1760130592866,0.0998,3911.4,3908.3,0.4323]
[1760130593171,2.5581208,3909.2,3908.3,0.4323]
[1760130593357,2.953,3909.6,3908.3,0.4323]
[1760130593902,1.92,3910.5,3908.3,0.4323]
[1760130594200,1.92,3910.1,3908.3,0.4323]
[1760130594351,1.92,3910.1,3907.5,0.4323]
[1760130594547,4.47807277,3909.2,3907.5,0.4323]
[1760130594781,5.2208,3910.4,3907.5,0.4323]
[1760130594782,1.92,3909.7,3907.5,0.4323]
[1760130594982,2.55863355,3908.4,3907.5,0.4323]
[1760130595180,2.55865721,3908.3,3907.5,0.4323]
[1760130595386,1.92,3908.3,3906.7,0.4323]
[1760130595685,1.92,3908.0,3906.1,0.4323]
[1760130595855,2.55996808,3906.3,3906.1,0.4323]
[1760130596047,2.55981468,3906.6,3906.1,0.4323]
[1760130596249,2.65966725,3908.3,3906.2,0.4323]
[1760130596250,1.92,3906.9,3906.2,0.4323]
[1760130596584,1.92,3906.8,3905.9,0.002]
[1760130596952,2.56016385,3906.0,3905.9,0.002]
[1760130597354,4.48016385,3906.0,3905.9,0.002]
[1760130597571,1.92,3906.0,3905.9,0.002]
[1760130597782,6.35216385,3906.0,3905.9,0.002]
[1760130597988,9.83416385,3906.0,3905.9,0.002]
[1760130598156,1.92,3906.0,3905.9,0.002]
[1760130598484,7.87924347,3906.0,3905.9,0.002]
[1760130598685,1.92,3906.0,3905.9,0.002]
[1760130598868,4.48016385,3906.0,3905.9,0.002]
[1760130599062,1.92,3906.0,3905.9,0.002]
[1760130599396,5.351,3906.0,3905.9,0.002]
[1760130599578,1.92,3908.1,3905.9,0.4343]
[1760130599760,14.05773471,3908.2,3905.9,0.002]
[1760130599761,2.55911556,3907.6,3905.9,0.002]
[1760130599954,1.92,3907.6,3905.9,0.002]
[1760130600276,0.1005,3907.9,3905.9,0.002]
[1760130600453,1.639,3907.8,3906.0,0.4323]
[1760130600657,2.56001161,3906.3,3905.9,0.002]
[1760130600957,2.55945927,3907.1,3905.9,0.4343]
[1760130601277,2.55793727,3909.4,3905.9,0.4343]
[1760130601478,0.99999999,3911.8,3905.9,0.4343]
[1760130601479,14.06123471,3910.5,3906.0,0.0244464]
[1760130601788,14.06123471,3910.5,3906.1,0.6675]
[1760130601789,12.11,3910.4,3906.1,0.6675]
[1760130601992,12.214,3910.4,3906.2,0.4323]
[1760130602191,0.104,3910.3,3906.2,0.4323]
[1760130602390,2.024,3910.2,3906.2,0.4323]
[1760130602591,0.104,3910.2,3906.2,0.4323]
[1760130602892,2.55764926,3909.9,3906.4,1.92]
[1760130603068,5.345,3910.1,3907.2,2.55932299]
[1760130603271,1.407,3910.0,3907.3,2.99160687]
[1760130603459,1.407,3910.0,3907.4,0.4323]
[1760130603973,8.98261206,3909.9,3907.4,0.4323]
[1760130604169,2.55664199,3911.4,3907.5,0.0255918]
[1760130604478,13.95723471,3911.8,3907.6,0.4323]
[1760130604479,1.92,3910.3,3907.6,0.4323]
[1760130604791,1.92,3910.1,3907.6,0.4323]
[1760130604977,1.92,3909.6,3907.6,0.4323]
[1760130605188,13.95723471,3910.8,3906.7,0.5595]
[1760130605189,2.55920551,3907.5,3906.7,0.5595]
[1760130605499,2.55905008,3907.7,3906.7,0.5595]
[1760130605815,1.92,3907.7,3906.7,0.4323]
[1760130606094,16.51522278,3909.4,3906.7,0.4323]
[1760130606297,16.51522278,3909.4,3906.1,0.2352]
[1760130606298,2.55789498,3909.5,3906.8,0.4323]
[1760130606467,4.175,3909.6,3906.9,0.01035619]
[1760130606668,4.175,3909.6,3907.0,0.4323]
[1760130607072,2.55792635,3909.5,3907.0,0.4323]
[1760130607276,1.92,3909.5,3907.0,0.4323]
[1760130607483,4.175,3909.6,3907.0,0.4323]
[1760130607804,14.13793471,3912.0,3907.0,0.4323]
[1760130607805,0.1061,3911.4,3907.1,1.92]
[1760130607996,2.55682544,3911.1,3907.2,2.0723]
[1760130608196,1.92,3910.0,3907.3,0.4323]
[1760130608399,5.333,3909.9,3907.3,0.4323]
[1760130608596,1.64,3911.3,3907.6,1.92]
[1760130608802,5.332,3911.2,3907.7,0.4323]
[1760130609010,0.001,3912.0,3907.9,1.92]
[1760130609179,0.001,3912.0,3910.0,0.2352]
[1760130609700,2.55725027,3912.0,3910.1,0.4323]
[1760130609869,1.64,3911.9,3910.1,0.4323]
[1760130610070,1.92,3911.8,3910.1,0.4323]
[1760130610384,1.92,3911.0,3909.3,0.4323]
[1760130610581,1.92,3910.8,3909.3,0.4323]
[1760130610779,1.92,3910.6,3909.3,0.4323]
[1760130610980,2.55721774,3910.5,3908.2,1.8752]
[1760130611276,1.92,3910.6,3908.7,0.4323]
[1760130611277,2.55813391,3909.1,3908.7,0.4323]
[1760130611596,2.55847305,3908.6,3907.8,0.4323]
[1760130611768,2.55810034,3909.2,3908.9,0.002]
[1760130611969,4.47819902,3909.0,3908.9,0.002]
[1760130612203,4.47819902,3909.0,3906.3,0.4323]
[1760130612204,2.55952208,3907.0,3906.3,0.4323]
[1760130612498,2.55969319,3906.8,3906.3,0.4323]
[1760130612673,1.92,3908.2,3905.9,0.002]
[1760130612674,2.55868533,3908.3,3905.9,0.002]
[1760130612873,2.55823189,3909.0,3906.0,0.4323]
[1760130612874,1.92,3908.0,3906.0,0.4323]
[1760130613098,1.92,3908.2,3906.1,0.2352]
[1760130613301,1.92,3907.8,3906.1,0.2352]
[1760130613503,1.92,3907.8,3906.0,0.4323]
[1760130613709,2.55980361,3906.6,3906.0,0.4323]
[1760130613906,2.55854627,3908.5,3905.9,0.002]
[1760130613907,2.56014762,3906.1,3905.9,0.002]
[1760130614119,5.319,3906.1,3905.9,0.002]
[1760130614321,2.56016385,3906.0,3905.9,0.002]
[1760130614784,2.56068831,3905.2,3904.3,0.4323]
[1760130614986,2.56068831,3905.2,3903.7,0.4323]
[1760130615219,11.43768831,3905.2,3903.1,0.2352]
[1760130615386,4.58088831,3905.2,3902.9,0.4323]
[1760130615587,2.56171699,3903.7,3902.9,0.4323]
[1760130615818,5.316,3903.7,3902.9,0.4323]
[1760130616020,1.92,3904.7,3902.7,0.4323]
[1760130616221,10.441,3904.6,3902.7,0.4323]
[1760130616526,0.1002,3905.2,3902.7,0.5603]
[1760130616527,14.001,3904.5,3902.7,0.5603]
[1760130616681,1.92,3904.3,3902.7,0.4323]
[1760130616883,1.92,3904.3,3899.1,2.5646438]
[1760130616884,2.56253885,3902.4,3901.8,0.4667]
[1760130617087,2.56219863,3902.9,3901.8,0.4667]
[1760130617315,1.92,3904.1,3901.8,0.4667]
[1760130617619,1.92,3903.9,3901.8,0.4667]
[1760130617922,2.56066741,3905.3,3901.8,0.4667]
[1760130617923,1.92,3905.3,3901.8,0.4667]
[1760130618110,2.56131008,3904.3,3901.8,0.4667]
[1760130618313,2.56049161,3905.5,3901.8,0.4667]
[1760130618609,12.078,3905.4,3901.8,0.4667]
[1760130618817,1.92,3904.9,3901.8,0.4667]
[1760130619014,2.56255388,3902.4,3901.8,0.4667]
[1760130619193,0.1078,3904.8,3901.8,0.4667]
[1760130619387,1.92,3903.7,3901.8,0.4667]
[1760130619592,1.441,3903.6,3901.8,0.4667]
[1760130619835,10.5448,3903.5,3901.1,0.002]
[1760130620015,2.56331385,3901.2,3901.1,0.002]
[1760130620219,5.309,3901.3,3901.1,0.002]
[1760130620820,7.68989861,3903.4,3901.1,0.002]
[1760130620821,9.51131385,3901.2,3901.1,0.002]
[1760130621021,4.48331385,3901.2,3901.1,0.002]
[1760130621227,5.307,3901.2,3901.1,0.002]
[1760130621628,1.92,3902.1,3901.1,0.4687]
[1760130621947,5.229,3902.0,3901.1,0.4687]
[1760130622099,3.588,3901.9,3901.1,0.4687]
[1760130622297,1.92,3903.4,3901.1,0.4687]
[1760130622494,0.1085,3903.7,3901.1,0.4687]
[1760130622495,1.92,3903.2,3901.1,0.4687]
[1760130622740,0.1085,3903.7,3901.1,0.4687]
[1760130622921,2.5620004,3903.2,3901.1,0.4687]
[1760130623244,2.56331385,3901.2,3901.1,0.002]
[1760130623533,9.50731385,3901.2,3901.1,0.002]
[1760130623834,11.42731385,3901.2,3901.1,0.002]
[1760130624031,4.48351098,3900.9,3900.4,0.002]
[1760130624206,1.92,3900.4,3898.5,0.4667]
[1760130624412,2.56458059,3899.3,3898.5,0.4667]
[1760130624605,2.56403681,3900.1,3898.5,0.4667]
[1760130624606,5.301,3899.2,3898.5,0.4667]
[1760130624935,5.301,3899.2,3898.0,0.2352]
[1760130625139,2.56474283,3899.1,3897.8,0.4667]
[1760130625436,0.1155,3900.9,3897.8,0.4667]
[1760130625597,1.642,3900.8,3897.8,0.4667]
[1760130625799,1.92,3900.7,3897.8,2.3867]
[1760130625998,1.92,3901.5,3897.9,0.4667]
[1760130626193,1.92,3902.1,3898.5,2.56505084]
[1760130626429,2.56219734,3902.9,3898.6,0.6874]
[1760130626632,12.072,3902.8,3898.7,2.3867]
[1760130626932,1.92,3901.9,3899.6,0.128]
[1760130627119,1.92,3901.7,3898.8,0.4667]
[1760130627326,1.92,3901.7,3899.3,0.128]
[1760130627501,0.1174,3901.6,3898.8,0.4667]
[1760130627699,2.56422199,3899.9,3898.8,0.4667]
[1760130627998,2.56553265,3897.9,3896.5,0.4667]
[1760130628234,6.08,3897.8,3896.5,0.4667]
[1760130628541,5.295,3897.7,3896.5,0.4667]
[1760130628836,2.56574727,3897.5,3896.5,0.4667]
[1760130629034,1.642,3897.6,3896.5,0.4667]
[1760130629223,5.293,3897.5,3896.5,0.4667]
[1760130629401,7.85874727,3897.5,3897.4,0.002]
[1760130629602,9.50074727,3897.5,3897.4,0.002]
[1760130630006,2.68515999,3898.3,3897.4,0.002]
[1760130630007,0.1199,3898.3,3897.4,0.002]
[1760130630336,2.56574727,3897.5,3897.4,0.002]
[1760130630649,2.56541816,3898.0,3895.2,0.4667]
[1760130630650,2.56543832,3898.0,3895.2,0.4667]
[1760130630801,3.976,3897.9,3896.0,0.4667]
[1760130631001,5.62,3897.8,3896.0,0.4667]
[1760130631234,6.933,3897.7,3896.0,0.4667]
[1760130631450,5.29,3897.6,3896.0,0.4667]
[1760130631601,1.92,3897.5,3894.3,0.2207]
[1760130631807,2.56686688,3895.8,3894.4,0.4667]
[1760130632035,2.56710026,3895.5,3894.4,0.4667]
[1760130632233,5.289,3895.4,3894.4,0.4667]
[1760130632732,2.56632655,3896.7,3894.4,0.4667]
[1760130632733,2.56580395,3897.5,3894.4,0.4667]
[1760130633039,2.56667604,3896.1,3894.4,0.4667]
[1760130633213,4.006,3896.0,3894.4,0.4667]
[1760130633411,2.56686764,3895.8,3894.4,0.4667]
[1760130633623,2.5669894,3895.7,3894.4,0.4667]
[1760130633934,2.041,3897.4,3894.4,0.4667]
[1760130633935,2.834,3895.6,3894.4,0.4667]
[1760130634140,1.643,3896.0,3894.4,0.4667]
[1760130634141,2.834,3895.5,3894.4,0.4667]
[1760130634636,2.669,3901.2,3894.4,0.4667]
[1760130634637,2.56522073,3898.3,3894.4,0.4667]
[1760130634838,12.064,3898.2,3894.4,0.4667]
[1760130635046,2.56554979,3897.8,3894.4,0.4667]
[1760130635205,2.041,3898.1,3894.4,0.4667]
[1760130635206,0.121,3897.7,3894.4,0.4667]
[1760130635406,2.56587894,3897.3,3894.4,0.4667]
[1760130635646,2.56587894,3897.3,3892.1,1.23]
[1760130635647,2.56627402,3896.7,3892.1,1.23]
[1760130635837,0.121,3897.2,3892.1,1.23]
[1760130635838,4.33136165,3896.6,3893.7,0.4667]
[1760130636151,6.927,3896.5,3894.2,0.4667]
[1760130636461,6.927,3896.5,3894.1,1.23]
[1760130636462,2.56653748,3896.3,3894.1,1.23]
[1760130636663,1.92,3896.1,3894.1,1.23]
[1760130636865,2.56792152,3894.2,3894.1,1.23]
[1760130637052,7.84892152,3894.2,3894.1,1.23]
[1760130637441,9.49192152,3894.2,3894.1,1.23]
[1760130637629,0.124,3894.8,3894.1,1.23]
[1760130637830,2.5674093,3895.0,3894.1,1.23]
[1760130638062,6.924,3894.9,3894.1,1.23]
[1760130638268,5.279,3894.8,3894.1,1.23]
[1760130638561,5.278,3894.7,3894.1,1.23]
[1760130638764,5.278,3894.6,3894.1,1.23]
[1760130638951,2.56792152,3894.2,3894.1,1.23]
[1760130639132,2.56780005,3894.4,3894.1,1.23]
[1760130639333,5.278,3894.5,3894.1,1.23]
[1760130639541,2.56792152,3894.2,3894.1,1.23]
[1760130639770,1.92,3895.8,3894.1,1.23]
[1760130639953,1.17569999,3899.0,3894.1,1.6967]
[1760130639954,1.644,3895.4,3894.1,1.6967]
[1760130640131,13.95723471,3897.8,3894.2,0.6874]
[1760130640132,0.1216,3897.4,3894.2,0.6874]
[1760130640461,13.95723471,3897.8,3894.3,0.4667]
[1760130640462,2.56594478,3897.2,3894.3,0.4667]
[1760130640630,12.059,3897.1,3894.3,0.4667]
[1760130640827,2.56690477,3895.8,3894.3,0.4667]
[1760130641029,5.275,3895.7,3894.1,1.23]
[1760130641265,2.56792152,3894.2,3894.1,1.23]
[1760130641441,9.48692152,3894.2,3894.1,1.23]
[1760130642071,2.56811936,3893.9,3893.8,0.01393286]
[1760130642371,2.56811936,3893.9,3893.8,1e-08]
[1760130642372,9.76011936,3893.9,3893.8,1e-08]
[1760130642532,2.56910903,3892.4,3888.4,0.4667]
[1760130642729,2.56910903,3892.4,3888.5,0.2207]
[1760130642730,2.0416,3892.3,3888.5,0.2207]
[1760130643065,1.92,3892.1,3889.3,0.4667]
[1760130643266,2.57122287,3889.2,3888.3,2.46]
[1760130643468,9.48622287,3889.2,3888.3,2.46]
[1760130643645,5.269,3889.2,3888.3,2.46]
[1760130643850,9.48522287,3889.2,3888.3,2.46]
[1760130644172,5.269,3889.2,3888.3,2.46]
[1760130644739,5.268,3889.2,3889.1,1.6967]
[1760130644960,5.268,3889.2,3889.1,1.23]
[1760130645341,8.15302287,3889.2,3889.1,1.23]
[1760130645574,2.57175187,3888.4,3888.3,2.46]
[1760130645775,9.48375187,3888.4,3888.3,2.46]
[1760130646078,5.267,3888.4,3888.3,2.46]
[1760130646241,5.267,3888.4,3881.5,2.57628714]
[1760130646242,1.92,3886.8,3881.5,2.57628714]
[1760130646571,23.33723471,3888.4,3884.5,0.4388]
[1760130646572,0.2919,3887.5,3884.5,0.4388]
[1760130646782,1.11,3887.4,3885.2,0.45124993]
[1760130646993,2.756,3887.4,3885.2,0.4388]
[1760130647156,2.57095845,3889.6,3885.2,0.4388]
[1760130647354,6.911,3889.5,3885.3,0.53952013]
[1760130647539,6.911,3889.5,3885.4,0.4388]
[1760130647895,30.0,3889.3,3885.4,0.4388]
[1760130648043,1.92,3889.0,3885.4,0.4388]
[1760130648243,1.92,3888.3,3885.4,0.4388]
[1760130648541,0.3144,3888.2,3885.5,0.4388]
[1760130648750,3.143,3888.1,3885.5,0.4388]
[1760130648957,1.646,3888.2,3885.5,0.4388]
[1760130649139,3.493,3888.1,3885.5,0.4388]
[1760130649365,3.493,3888.1,3886.8,0.128]
[1760130649770,13.95723471,3890.9,3886.8,0.4676]
[1760130650082,0.099,3891.0,3888.1,0.128]
[1760130650282,1.647,3890.5,3887.9,0.4676]
[1760130650482,2.57118597,3889.3,3887.9,0.5956]
[1760130650695,2.57118597,3889.3,3887.9,0.4676]
[1760130650696,2.57182841,3888.3,3887.9,0.4676]
[1760130650901,2.57200423,3888.1,3887.0,0.4676]
[1760130651177,0.099,3890.5,3887.0,0.4676]
[1760130651361,2.57049584,3890.3,3888.0,0.128]
[1760130651567,2.56976735,3891.5,3888.0,0.128]